bitfinex/quotes_BTCUSD_20260104
["timestamp","ask_amount","ask_price","bid_price","bid_amount"]
[1767561886346,0.01095926,91247.0,91241.0,0.01095998]
[1767561886906,0.01095926,91247.0,91241.0,0.01091586]
[1767561887124,0.01095914,91248.0,91242.0,0.01095986]
[1767561887310,0.01095914,91248.0,91241.0,0.01091586]
[1767561887311,0.01095926,91247.0,91241.0,0.01091586]
[1767561887664,0.01095926,91247.0,91241.0,0.01095998]
[1767561887868,0.01095914,91248.0,91242.0,0.01095986]
[1767561888111,0.01095926,91247.0,91241.0,0.01095998]
[1767561888563,0.01095914,91248.0,91242.0,0.01095986]
[1767561889428,0.01095926,91247.0,91241.0,0.01095998]
[1767561891040,0.01095926,91247.0,91241.0,0.01091586]
[1767561891176,0.01095926,91247.0,91242.0,0.01095986]
[1767561891382,0.01095926,91247.0,91241.0,0.01091586]
[1767561891902,0.01095926,91247.0,91241.0,0.01087174]
[1767561892715,0.01095914,91248.0,91241.0,0.01087174]
[1767561892716,0.01095914,91248.0,91242.0,0.01095986]
[1767561893352,0.01095926,91247.0,91241.0,0.01087174]
[1767561894286,0.01095926,91247.0,91241.0,0.01095998]
[1767561894455,0.01095926,91247.0,91242.0,0.01095986]
[1767561894643,0.01095914,91248.0,91242.0,0.01095986]
[1767561895231,0.01095926,91247.0,91241.0,0.01095998]
[1767561895413,0.01095914,91248.0,91242.0,0.01095986]
[1767561897890,0.01095926,91247.0,91241.0,0.01095998]
[1767561898670,0.01095914,91248.0,91242.0,0.01095986]
[1767561898871,0.01095926,91247.0,91241.0,0.01095998]
[1767561899423,0.01095914,91248.0,91242.0,0.01095986]
[1767561900079,0.01095926,91247.0,91241.0,0.01095998]
[1767561900789,0.01095914,91248.0,91242.0,0.01095986]
[1767561901012,0.08767462,91249.0,91243.0,0.01095974]
[1767561901013,0.03287902,91249.0,91243.0,0.01095974]
[1767561901225,0.03287902,91249.0,91243.0,0.01091471]
[1767561901441,0.01095914,91248.0,91242.0,0.01095986]
[1767561902643,0.03287902,91249.0,91246.0,0.01095938]
[1767561902644,0.02192,91249.0,91246.0,0.01095938]
[1767561902842,0.02192,91251.0,91246.0,0.06051754]
[1767561903058,0.02192,91251.0,91248.0,0.01095914]
[1767561903667,0.02183173,91251.0,91247.0,0.01095926]
[1767561903892,0.01095758,91261.0,91252.0,0.01095866]
[1767561904044,0.0109577,91260.0,91252.0,0.01095866]
[1767561904242,0.01095782,91259.0,91253.0,0.01095854]
[1767561904442,0.01095782,91259.0,91253.0,0.01091352]
[1767561904642,0.01095794,91258.0,91252.0,0.01095866]
[1767561905076,0.01095806,91257.0,91251.0,0.01095878]
[1767561905282,0.01095806,91257.0,91250.0,0.06051706]
[1767561905644,0.01095818,91256.0,91250.0,0.04955816]
[1767561905913,0.01095818,91256.0,91250.0,0.06051706]
[1767561906263,0.01095818,91256.0,91250.0,0.04955816]
[1767561906465,0.0109583,91255.0,91250.0,0.04855916]
[1767561907065,0.0109583,91255.0,91248.0,0.01095914]
[1767561907817,0.0109583,91255.0,91249.0,0.01095902]
[1767561908019,0.0109583,91255.0,91248.0,0.01095914]
[1767561908020,0.01095842,91254.0,91248.0,0.01095914]
[1767561909354,0.0109583,91255.0,91249.0,0.01095902]
[1767561909907,0.01095842,91254.0,91248.0,0.01095914]
[1767561910103,0.0109583,91255.0,91249.0,0.01095902]
[1767561910324,0.01095842,91254.0,91248.0,0.01095914]
[1767561910518,0.01095818,91256.0,91249.0,0.01095902]
[1767561911137,0.01095806,91257.0,91250.0,0.0109589]
[1767561911672,0.01095806,91257.0,91251.0,0.01095878]
[1767561912245,0.01095818,91256.0,91249.0,0.01095902]
[1767561912445,0.01095842,91254.0,91248.0,0.01095914]
[1767561913602,0.01095842,91254.0,91247.0,0.01095926]
[1767561913965,0.01095854,91253.0,91247.0,0.01095926]
[1767561914183,0.01095854,91253.0,91246.0,0.01095938]
[1767561914390,0.00495842,91254.0,91247.0,0.01095926]
[1767561914588,0.01095854,91253.0,91248.0,0.01095914]
[1767561914992,0.01095854,91253.0,91247.0,0.01095926]
[1767561915513,0.00495842,91254.0,91247.0,0.01095926]
[1767561916257,0.01095854,91253.0,91247.0,0.01095926]
[1767561917350,0.01095854,91253.0,91248.0,0.01095914]
[1767561917693,0.00495842,91254.0,91248.0,0.01095914]
[1767561918674,0.01095854,91253.0,91247.0,0.01095926]
[1767561919379,0.00495842,91254.0,91248.0,0.01095914]
[1767561919580,0.01095854,91253.0,91246.0,0.01095938]
[1767561919733,0.01095854,91253.0,91245.0,0.06575658]
[1767561919734,0.01095866,91252.0,91245.0,0.0109595]
[1767561919898,0.01095866,91252.0,91246.0,0.01095938]
[1767561920106,0.01095854,91253.0,91247.0,0.01095926]
[1767561921368,0.00495842,91254.0,91248.0,0.01095914]
[1767561921671,0.00691672,91255.0,91248.0,0.01095914]
[1767561922258,0.00691672,91255.0,91249.0,0.01095902]
[1767561922571,0.01095842,91254.0,91248.0,0.01095914]
[1767561923158,0.01095854,91253.0,91247.0,0.01095926]
[1767561923623,0.01095842,91254.0,91247.0,0.01095926]
[1767561923624,0.01095842,91254.0,91248.0,0.01095914]
[1767561924798,0.01095842,91254.0,91249.0,0.01095902]
[1767561925894,0.01095842,91254.0,91248.0,0.01095914]
[1767561926105,0.01095842,91254.0,91249.0,0.01095902]
[1767561926594,0.00691672,91255.0,91249.0,0.01095902]
[1767561926932,0.01095842,91254.0,91249.0,0.01095902]
[1767561927876,0.00691672,91255.0,91249.0,0.01095902]
[1767561929378,0.05270815,91256.0,91249.0,0.01095902]
[1767561929583,0.01095842,91254.0,91248.0,0.01095914]
[1767561930144,0.01095854,91253.0,91247.0,0.01095926]
[1767561931199,0.01095866,91252.0,91247.0,0.01095926]
[1767561931406,0.01095878,91251.0,91245.0,0.06575659]
[1767561931532,0.01095854,91253.0,91246.0,0.01095938]
[1767561931992,0.01095854,91253.0,91248.0,0.01095914]
[1767561932393,0.01095842,91254.0,91248.0,0.01095914]
[1767561934729,0.0109583,91255.0,91249.0,0.01095902]
[1767561939379,0.01095842,91254.0,91249.0,0.01095902]
[1767561939831,0.01095854,91253.0,91247.0,0.01095926]
[1767561940223,0.01095854,91253.0,91248.0,0.01095914]
[1767561940623,0.01095854,91253.0,91247.0,0.01095926]
[1767561940830,0.01095854,91253.0,91248.0,0.01095914]
[1767561941040,0.01095854,91253.0,91247.0,0.01095926]
[1767561941719,0.01095854,91253.0,91248.0,0.01095914]
[1767561941857,0.01095854,91253.0,91247.0,0.01095926]
[1767561943212,0.01095866,91252.0,91246.0,0.01095938]
[1767561943368,0.01095854,91253.0,91247.0,0.01095926]
[1767561944363,0.01095842,91254.0,91248.0,0.01095914]
[1767561944706,0.01095842,91254.0,91247.0,0.01095926]
[1767561944707,0.01095854,91253.0,91247.0,0.01095926]
[1767561945072,0.01095854,91253.0,91248.0,0.01095914]
[1767561945274,0.01095854,91253.0,91247.0,0.01095926]
[1767561945478,0.01095854,91253.0,91248.0,0.01095914]
[1767561945658,0.01095842,91254.0,91247.0,0.01095926]
[1767561946102,0.01095854,91253.0,91248.0,0.01095914]
[1767561947264,0.01095842,91254.0,91248.0,0.01095914]
[1767561948568,0.01095854,91253.0,91247.0,0.01095926]
[1767561949316,0.01095854,91253.0,91248.0,0.01095914]
[1767561949779,0.01095854,91253.0,91247.0,0.01095926]
[1767561949992,0.01095854,91253.0,91248.0,0.01095914]
[1767561950183,0.01095842,91254.0,91248.0,0.01095914]
[1767561950563,0.01095854,91253.0,91247.0,0.01095926]
[1767561952946,0.01095854,91253.0,91246.0,0.01095938]
[1767561953118,0.01095866,91252.0,91246.0,0.01095938]
[1767561953441,0.01095854,91253.0,91247.0,0.01095926]
[1767561954242,0.01095866,91252.0,91243.0,0.02192]
[1767561954443,0.01095866,91252.0,91247.0,0.01095926]
[1767561954668,0.01095854,91253.0,91247.0,0.01095926]
[1767561955230,0.01095866,91252.0,91247.0,0.01095926]
[1767561955852,0.01095854,91253.0,91247.0,0.01095926]
[1767561956253,0.01095866,91252.0,91246.0,0.01095938]
[1767561956770,0.01095866,91252.0,91246.0,0.01091526]
[1767561956983,0.01095866,91252.0,91246.0,0.01087114]
[1767561957187,0.01095854,91253.0,91247.0,0.01095926]
[1767561960755,0.01095842,91254.0,91248.0,0.01095914]
[1767561962149,0.01095842,91254.0,91249.0,0.01095902]
[1767561962354,0.06575031,91255.0,91249.0,0.01095902]
[1767561962958,0.01095794,91258.0,91255.0,0.000999]
[1767561963148,0.01095794,91258.0,91252.0,0.01095866]
[1767561963269,0.01095794,91258.0,91252.0,0.01091454]
[1767561963683,0.01095782,91259.0,91253.0,0.01095854]
[1767561964045,0.01095806,91257.0,91252.0,0.01091454]
[1767561964241,0.01095806,91257.0,91252.0,0.01087042]
[1767561964591,0.01095806,91257.0,91251.0,0.01095878]
[1767561965810,0.01095818,91256.0,91250.0,0.0109589]
[1767561966223,0.0109583,91255.0,91249.0,0.35434392]
[1767561966559,0.0109583,91255.0,91250.0,0.0109589]
[1767561966760,0.0109583,91255.0,91249.0,0.01095902]
[1767561967195,0.0109583,91255.0,91250.0,0.0109589]
[1767561967681,0.01095818,91256.0,91250.0,0.0109589]
[1767561967877,0.01095818,91256.0,91251.0,0.01095878]
[1767561968244,0.01095818,91256.0,91250.0,0.0109589]
[1767561968437,0.01095818,91256.0,91251.0,0.01095878]
[1767561971094,0.01095806,91257.0,91251.0,0.01095878]
[1767561971308,0.01095806,91257.0,91251.0,0.01091467]
[1767561973493,0.01095806,91257.0,91252.0,0.01095866]
[1767561973689,0.01095818,91256.0,91251.0,0.01091467]
[1767561974055,0.01095806,91257.0,91252.0,0.01095866]
[1767561974267,0.01095794,91258.0,91253.0,0.01095854]
[1767561974599,0.01095794,91258.0,91252.0,0.01095866]
[1767561974804,0.01095794,91258.0,91253.0,0.01095854]
[1767561975302,0.01095794,91258.0,91252.0,0.01095866]
[1767561975688,0.01095794,91258.0,91253.0,0.01095854]
[1767561976315,0.01095806,91257.0,91252.0,0.01095866]
[1767561976471,0.01095794,91258.0,91253.0,0.01095854]
[1767561976792,0.01095794,91258.0,91252.0,0.01095866]
[1767561976993,0.01095794,91258.0,91253.0,0.01095854]
[1767561977991,0.01095794,91258.0,91253.0,0.01091443]
[1767561980279,0.01095782,91259.0,91253.0,0.01091443]
[1767561981221,0.01095794,91258.0,91253.0,0.01091443]
[1767561983147,0.01095782,91259.0,91253.0,0.01091443]
[1767561984435,0.01095794,91258.0,91253.0,0.01087032]
[1767561984659,0.01095794,91258.0,91253.0,0.01095854]
[1767561985145,6.703e-05,91261.0,91258.0,0.01095794]
[1767561985370,6.703e-05,91261.0,91258.0,0.01186694]
[1767561985712,6.703e-05,91261.0,91258.0,0.01095794]
[1767561991547,6.703e-05,91261.0,91258.0,0.0108679]
[1767561992603,3e-08,91261.0,91258.0,0.06565715]
[1767561992792,3e-08,91261.0,91259.0,0.05478859]
[1767561992995,3e-08,91261.0,91259.0,0.10132959]
[1767561993393,3e-08,91261.0,91260.0,0.046541]
[1767561995469,0.000154,91268.0,91265.0,0.0109571]
[1767561995739,0.000157,91265.0,91264.0,0.01095722]
[1767561996137,0.000154,91268.0,91265.0,0.0109571]
[1767561996378,0.000154,91268.0,91264.0,0.01095722]
[1767561997252,0.01111074,91268.0,91262.0,0.01095746]
[1767561998060,0.01095686,91267.0,91262.0,0.01095746]
[1767561998797,0.01095686,91267.0,91262.0,0.01091336]
[1767561999584,0.01095686,91267.0,91258.0,0.0108679]
[1767561999784,0.01095734,91263.0,91258.0,0.0108679]
[1767562000050,0.000154,91268.0,91259.0,0.03287782]
[1767562000270,0.000154,91268.0,91266.0,0.04914622]
[1767562001863,0.000154,91268.0,91266.0,0.04905616]
[1767562002064,0.01095638,91271.0,91266.0,0.04905616]
[1767562002659,0.01095638,91271.0,91266.0,0.06001314]
[1767562004354,0.01095626,91272.0,91266.0,0.06001314]
[1767562004555,0.01095638,91271.0,91266.0,0.04905616]
[1767562004758,0.01095614,91273.0,91266.0,0.06001314]
[1767562004935,0.01095614,91273.0,91271.0,0.000999]
[1767562005140,0.01095626,91272.0,91267.0,0.04914622]
[1767562006131,0.01095638,91271.0,91267.0,0.04914622]
[1767562008494,0.01095638,91271.0,91266.0,0.01095698]
[1767562009204,0.0109565,91270.0,91265.0,0.06010332]
[1767562009651,0.01095638,91271.0,91266.0,0.01095698]
[1767562009773,0.01095638,91271.0,91265.0,0.06010332]
[1767562009975,0.01095614,91273.0,91271.0,0.000999]
[1767562010177,0.06573192,91280.0,91273.0,0.01095614]
[1767562010527,0.01095554,91278.0,91273.0,0.01095614]
[1767562011287,0.0576693,91278.0,91273.0,0.01095614]
[1767562011777,0.04671376,91278.0,91273.0,0.01095614]
[1767562011947,0.01095518,91281.0,91278.0,0.000999]
[1767562012122,0.01095518,91281.0,91278.0,0.00095398]
[1767562012327,0.01095506,91282.0,91275.0,0.0109559]
[1767562012524,0.0109553,91280.0,91274.0,0.01095602]
[1767562012725,0.01095518,91281.0,91275.0,0.0109559]
[1767562013096,0.0109553,91280.0,91274.0,0.01095602]
[1767562013299,0.01095542,91279.0,91274.0,0.01095602]
[1767562014735,0.01095542,91279.0,91274.0,0.06010224]
[1767562017463,0.00595542,91279.0,91274.0,0.06010224]
[1767562018510,0.0109553,91280.0,91274.0,0.06010224]
[1767562019457,0.01095542,91279.0,91274.0,0.01095602]
[1767562019856,0.06572865,91285.0,91279.0,0.000954]
[1767562020055,0.01095494,91283.0,91279.0,0.000954]
[1767562020462,0.01095506,91282.0,91279.0,0.000954]
[1767562020670,0.01095506,91282.0,91276.0,0.01095578]
[1767562021008,0.01095506,91282.0,91277.0,0.01095566]
[1767562021366,0.01095518,91281.0,91276.0,0.01095578]
[1767562022182,0.01095506,91282.0,91277.0,0.01095566]
[1767562024614,4.5e-05,91277.0,91275.0,0.0109559]
[1767562024817,0.0109553,91280.0,91275.0,0.0109559]
[1767562025011,0.01095542,91279.0,91274.0,0.0219118]
[1767562025242,1e-08,91279.0,91274.0,0.0219118]
[1767562025615,0.01095543,91279.0,91274.0,0.0219118]
[1767562025811,1e-08,91279.0,91274.0,0.0219118]
[1767562026572,1e-08,91279.0,91275.0,0.0109559]
[1767562028558,0.01095543,91279.0,91274.0,0.0219118]
[1767562029501,0.01095543,91279.0,91272.0,0.05205666]
[1767562029750,0.01095543,91279.0,91275.0,0.0109559]
[1767562030185,1e-08,91279.0,91275.0,0.0109559]
[1767562031152,0.01024795,91280.0,91273.0,0.05478036]
[1767562031348,0.01024795,91280.0,91273.0,0.02986585]
[1767562031553,0.01095518,91281.0,91274.0,0.01686045]
[1767562031761,0.01095518,91281.0,91272.0,0.00839572]
[1767562031978,0.01095518,91281.0,91271.0,0.01095638]
[1767562032323,0.01095518,91281.0,91276.0,0.01095578]
[1767562032896,0.01095542,91279.0,91274.0,0.01095602]
[1767562033019,0.06573144,91281.0,91274.0,0.01095602]
[1767562033731,0.01095518,91281.0,91274.0,0.01095602]
[1767562033928,0.01095518,91281.0,91275.0,0.0109559]
[1767562034548,0.01095518,91281.0,91276.0,0.01095578]
[1767562035409,0.01095518,91281.0,91277.0,0.01095566]
[1767562035687,0.01095518,91281.0,91273.0,0.0657365]
[1767562036297,0.01095518,91281.0,91274.0,0.05477976]
[1767562036739,0.01095518,91281.0,91273.0,0.0657365]
[1767562037152,0.01095518,91281.0,91274.0,0.05477976]
[1767562037377,0.01095518,91281.0,91276.0,0.01095578]
[1767562039439,0.01095518,91281.0,91274.0,0.06273295]
[1767562040317,0.01095518,91281.0,91276.0,0.01095578]
[1767562041174,0.01095518,91281.0,91274.0,0.05589265]
[1767562041564,0.01095518,91281.0,91274.0,0.05477976]
[1767562042080,0.01095494,91283.0,91278.0,0.01095554]
[1767562042282,0.01095506,91282.0,91276.0,0.01095578]
[1767562042443,0.01095506,91282.0,91277.0,0.01095566]
[1767562042648,0.01095506,91282.0,91276.0,0.01095578]
[1767562043044,0.01095506,91282.0,91275.0,0.06573492]
[1767562043286,0.01095518,91281.0,91276.0,0.01095578]
[1767562044221,0.01095518,91281.0,91275.0,0.0109559]
[1767562044577,0.01095518,91281.0,91276.0,0.01095578]
[1767562045462,0.000954,91276.0,91274.0,0.01095602]
[1767562045998,0.0109553,91280.0,91275.0,0.0109559]
[1767562046203,0.06573001,91283.0,91269.0,0.03285375]
[1767562046204,0.04878542,91279.0,91269.0,0.03285375]
[1767562046404,0.01095638,91271.0,91265.0,0.02192]
[1767562046603,0.0109565,91270.0,91264.0,0.05478597]
[1767562046804,0.01095638,91271.0,91265.0,0.0109571]
[1767562047124,0.0109565,91270.0,91264.0,0.01095722]
[1767562047288,0.0109565,91270.0,91263.0,0.04082781]
[1767562047490,0.01095638,91271.0,91263.0,0.01619099]
[1767562048462,0.01095626,91272.0,91259.0,0.21915646]
[1767562048665,0.01095626,91272.0,91264.0,0.05478574]
[1767562049031,0.01095626,91272.0,91267.0,0.01095686]
[1767562049234,0.01095626,91272.0,91266.0,0.01095698]
[1767562050132,0.01095638,91271.0,91265.0,0.0109571]
[1767562050476,0.0109565,91270.0,91265.0,0.0109571]
[1767562050646,0.0109565,91270.0,91264.0,0.01095722]
[1767562051174,0.0109565,91270.0,91262.0,0.08082465]
[1767562051671,0.0109565,91270.0,91262.0,0.03099311]
[1767562052173,0.01095638,91271.0,91264.0,0.01095722]
[1767562052486,0.01095638,91271.0,91265.0,0.0109571]
[1767562053352,0.0109565,91270.0,91264.0,0.01086723]
[1767562053552,0.0109565,91270.0,91262.0,0.04195057]
[1767562053553,0.0109565,91270.0,91262.0,0.02818119]
[1767562054287,0.0109565,91270.0,91264.0,0.01095722]
[1767562055193,0.06573799,91272.0,91265.0,0.0109571]
[1767562055492,0.01095638,91271.0,91263.0,0.06274221]
[1767562056192,0.01095626,91272.0,91266.0,0.01095698]
[1767562056555,0.01095626,91272.0,91264.0,0.01591109]
[1767562056963,0.01095638,91271.0,91265.0,0.0109571]
[1767562057169,0.01095626,91272.0,91265.0,0.0109571]
[1767562057371,0.01095638,91271.0,91265.0,0.0109571]
[1767562058043,0.01095626,91272.0,91265.0,0.0109571]
[1767562058244,0.01095626,91272.0,91266.0,0.010893]
[1767562058498,0.01095626,91272.0,91264.0,0.02686831]
[1767562058797,0.01095638,91271.0,91265.0,0.0109571]
[1767562059469,0.01095638,91271.0,91263.0,0.06274221]
[1767562060255,0.01095638,91271.0,91265.0,0.0109571]
[1767562060396,0.01095626,91272.0,91265.0,0.0109571]
[1767562061223,0.01095638,91271.0,91263.0,0.05478632]
[1767562061624,0.01095638,91271.0,91264.0,0.01095722]
[1767562062250,0.0109565,91270.0,91264.0,0.01095722]
[1767562065483,0.01095638,91271.0,91263.0,0.02714837]
[1767562066675,0.01095638,91271.0,91262.0,0.01018884]
[1767562066877,0.0109565,91270.0,91264.0,0.01095722]
[1767562067277,0.01095638,91271.0,91264.0,0.01095722]
[1767562067499,0.0109565,91270.0,91264.0,0.01095722]
[1767562067803,0.01095626,91272.0,91265.0,0.0109571]
[1767562068090,0.04974042,91270.0,91262.0,0.01095746]
[1767562068288,0.01095662,91269.0,91263.0,0.01095734]
[1767562069047,0.06573798,91272.0,91263.0,0.01095734]
[1767562069258,0.0109565,91270.0,91263.0,0.01095734]
[1767562069469,0.0109565,91270.0,91264.0,0.01095722]
[1767562070068,0.0109565,91270.0,91263.0,0.01095734]
[1767562070263,0.0109565,91270.0,91264.0,0.01095722]
[1767562070569,0.01095638,91271.0,91264.0,0.01095722]
[1767562071167,0.01095638,91271.0,91262.0,0.06574436]
[1767562071367,0.01095638,91271.0,91262.0,0.04082843]
[1767562071588,0.01095638,91271.0,91261.0,0.02192]
[1767562071792,0.01095638,91271.0,91262.0,0.0547869]
[1767562072300,0.01095638,91271.0,91264.0,0.01095722]
[1767562073281,0.0109565,91270.0,91264.0,0.01095722]
[1767562073597,0.01095638,91271.0,91264.0,0.01095722]
[1767562076627,0.01095638,91271.0,91262.0,0.06574436]
[1767562076829,0.0109565,91270.0,91262.0,0.03782705]
[1767562077288,0.01095638,91271.0,91264.0,0.01095722]
[1767562077485,0.0109565,91270.0,91262.0,0.01095746]
[1767562078116,0.06573798,91272.0,91265.0,0.0109571]
[1767562078329,0.01095626,91272.0,91265.0,0.0109571]
[1767562078503,0.01095638,91271.0,91263.0,0.01095734]
[1767562078901,0.01095638,91271.0,91264.0,0.01095722]
[1767562079435,0.01095638,91271.0,91262.0,0.06274299]
[1767562080037,0.01095626,91272.0,91264.0,0.01095722]
[1767562080509,0.01095626,91272.0,91265.0,0.0109571]
[1767562081001,0.01095638,91271.0,91265.0,0.0109571]
[1767562081222,0.01095626,91272.0,91263.0,0.06574365]
[1767562081756,0.01095626,91272.0,91265.0,0.0109571]
[1767562082312,0.01095626,91272.0,91264.0,0.01095722]
[1767562082516,0.0109565,91270.0,91263.0,0.01095734]
[1767562082956,0.01095662,91269.0,91263.0,0.01095734]
[1767562083154,0.0109565,91270.0,91263.0,0.01095734]
[1767562083363,0.01095674,91268.0,91262.0,0.00795609]
[1767562083570,0.01095674,91268.0,91259.0,0.07670862]
[1767562083571,0.05616287,91268.0,91259.0,0.05207197]
[1767562083773,0.05616347,91263.0,91258.0,0.02192]
[1767562083950,0.05616359,91262.0,91258.0,0.02192]
[1767562084153,0.04520613,91260.0,91258.0,0.02192]
[1767562084419,0.01095758,91261.0,91258.0,0.02192]
[1767562085103,0.01095746,91262.0,91258.0,0.02192]
[1767562085477,0.0657444,91263.0,91258.0,0.02192]
[1767562086754,0.01095746,91262.0,91253.0,0.05975265]
[1767562087368,0.01095746,91262.0,91253.0,0.04579349]
[1767562088271,0.01095746,91262.0,91255.0,0.0109583]
[1767562089507,0.01095758,91261.0,91253.0,0.03211405]
[1767562090444,0.01095746,91262.0,91255.0,0.0109583]
[1767562091179,0.01095746,91262.0,91253.0,0.02527415]
[1767562091816,0.01095746,91262.0,91252.0,0.04119076]
[1767562092023,0.01095758,91261.0,91252.0,0.05214942]
[1767562092627,0.01095746,91262.0,91254.0,0.01095842]
[1767562092821,0.01095746,91262.0,91255.0,0.0109583]
[1767562093236,0.01095758,91261.0,91254.0,0.01095842]
[1767562093444,0.00595758,91261.0,91254.0,0.01095842]
[1767562094062,0.01095746,91262.0,91255.0,0.0109583]
[1767562094262,0.01095758,91261.0,91254.0,0.01095842]
[1767562095249,0.01095746,91262.0,91255.0,0.0109583]
[1767562095458,0.01095746,91262.0,91253.0,0.06275006]
[1767562095616,0.01095758,91261.0,91254.0,0.01095842]
[1767562096042,0.01095746,91262.0,91255.0,0.0109583]
[1767562096238,0.01095758,91261.0,91254.0,0.01095842]
[1767562096801,0.01095758,91261.0,91252.0,0.05138505]
[1767562097230,0.01095758,91261.0,91254.0,0.01095842]
[1767562098495,0.01095758,91261.0,91249.0,0.01095902]
[1767562098798,0.01095842,91254.0,91248.0,0.02192]
[1767562099363,0.0109583,91255.0,91248.0,0.03287914]
[1767562099968,0.0109583,91255.0,91248.0,0.03294617]
[1767562101121,0.04504339,91257.0,91248.0,0.03294617]
[1767562101422,0.01095818,91256.0,91249.0,0.01095902]
[1767562101624,0.01095818,91256.0,91247.0,0.02192]
[1767562102183,0.01095818,91256.0,91249.0,0.01095902]
[1767562102387,0.0109583,91255.0,91248.0,0.01095914]
[1767562102967,0.01095818,91256.0,91248.0,0.01095914]
[1767562103193,0.0109583,91255.0,91247.0,0.02192]
[1767562103388,0.01095842,91254.0,91246.0,0.00795978]
[1767562103588,0.0110333,91254.0,91246.0,0.00795978]
[1767562104216,0.01095854,91253.0,91246.0,0.00795978]
[1767562104471,0.0110333,91254.0,91246.0,0.00795978]
[1767562105009,0.05623943,91254.0,91253.0,0.00059668]
[1767562105231,0.0110333,91254.0,91253.0,0.00059668]
[1767562105792,0.01095854,91253.0,91242.0,0.02192]
[1767562105992,0.01095866,91252.0,91244.0,0.01095962]
[1767562106245,0.01095854,91253.0,91245.0,0.0109595]
[1767562106693,0.01095866,91252.0,91242.0,0.00495964]
[1767562107161,0.01095866,91252.0,91243.0,0.05479872]
[1767562107375,0.01095854,91253.0,91245.0,0.0109595]
[1767562107571,0.01095854,91253.0,91243.0,0.0301587]
[1767562107714,0.01095854,91253.0,91245.0,0.0109595]
[1767562107921,0.01095866,91252.0,91245.0,0.0109595]
[1767562108681,0.01095878,91251.0,91244.0,0.01095962]
[1767562108828,0.01095914,91248.0,91240.0,0.0219934]
[1767562109040,0.01095902,91249.0,91241.0,0.01095998]
[1767562109474,0.01095902,91249.0,91242.0,0.01095986]
[1767562110148,0.01095902,91249.0,91241.0,0.01095998]
[1767562110149,0.01095914,91248.0,91241.0,0.01095998]
[1767562110346,0.01095902,91249.0,91241.0,0.01095998]
[1767562110971,0.01095902,91249.0,91242.0,0.01095986]
[1767562111169,0.01095902,91249.0,91240.0,0.0109601]
[1767562111554,0.01095902,91249.0,91239.0,0.04084009]
[1767562111765,0.01095902,91249.0,91238.0,0.34325988]
[1767562111973,0.01095902,91249.0,91230.0,0.34325988]
[1767562112157,0.01095902,91249.0,91241.0,0.01095998]
[1767562112355,0.01095902,91249.0,91242.0,0.01095986]
[1767562112615,0.01095902,91249.0,91241.0,0.01095998]
[1767562112898,0.0109589,91250.0,91242.0,0.01095986]
[1767562113711,0.01095902,91249.0,91239.0,0.05207955]
[1767562114777,0.0109589,91250.0,91242.0,0.01095986]
[1767562115570,0.0328789,91250.0,91242.0,0.01095986]
[1767562115970,0.01095902,91249.0,91242.0,0.01095986]
[1767562116197,0.01095902,91249.0,91241.0,0.01095998]
[1767562116828,0.01095902,91249.0,91239.0,0.02415808]
[1767562117027,0.01095902,91249.0,91242.0,0.01095986]
[1767562117852,0.01095914,91248.0,91236.0,0.06576308]
[1767562117989,0.05479794,91245.0,91235.0,0.000154]
[1767562118189,0.06575668,91246.0,91236.0,0.01096058]
[1767562118502,0.06575668,91246.0,91238.0,0.01096034]
[1767562119215,0.01095926,91247.0,91239.0,0.01096022]
[1767562119539,0.01095926,91247.0,91237.0,0.00795994]
[1767562119835,0.01095926,91247.0,91238.0,0.01096034]
[1767562119836,0.01095938,91246.0,91238.0,0.01096034]
[1767562120002,0.01095926,91247.0,91239.0,0.01096022]
[1767562120800,0.01095938,91246.0,91238.0,0.01096034]
[1767562121225,0.01095938,91246.0,91237.0,0.0657624]
[1767562121858,0.01095926,91247.0,91239.0,0.01096022]
[1767562122868,0.01095938,91246.0,91238.0,0.01096034]
[1767562123246,0.0328789,91250.0,91246.0,0.000999]
[1767562123440,0.0328789,91250.0,91242.0,0.01095986]
[1767562123623,0.02192,91250.0,91242.0,0.01095986]
[1767562123825,0.02192,91250.0,91244.0,0.01095962]
[1767562124244,0.02192,91250.0,91245.0,0.0109595]
[1767562124455,0.01392,91250.0,91244.0,0.01095962]
[1767562125259,0.01392,91250.0,91247.0,0.01095926]
[1767562125458,0.012921,91250.0,91246.0,0.01095938]
[1767562125640,0.012921,91250.0,91244.0,0.0520747]
[1767562126864,0.012921,91250.0,91242.0,0.06575904]
[1767562127082,0.012921,91250.0,91244.0,0.05479775]
[1767562127466,0.012921,91250.0,91244.0,0.02987668]
[1767562127703,0.012921,91250.0,91246.0,0.01095938]
[1767562127863,0.012921,91250.0,91247.0,0.01095926]
[1767562128452,0.012921,91250.0,91246.0,0.01095938]
[1767562129176,0.012921,91250.0,91247.0,0.01095926]
[1767562131188,0.012921,91250.0,91246.0,0.05479688]
[1767562131892,0.012921,91250.0,91244.0,0.01095962]
[1767562132251,0.012921,91250.0,91246.0,0.01095938]
[1767562133119,0.004921,91250.0,91246.0,0.01095938]
[1767562133322,0.004921,91250.0,91247.0,0.01095926]
[1767562135563,0.004921,91250.0,91245.0,0.06275433]
[1767562136666,0.004921,91250.0,91247.0,0.01095926]
[1767562136870,0.004921,91250.0,91245.0,0.03483109]
[1767562137724,0.004921,91250.0,91247.0,0.01095926]
[1767562141318,0.004921,91250.0,91245.0,0.06575663]
[1767562141684,0.004921,91250.0,91247.0,0.01095926]
[1767562141870,0.004921,91250.0,91246.0,0.0159139]
[1767562142298,0.00472097,91250.0,91247.0,0.01095926]
[1767562143578,0.00472097,91250.0,91246.0,0.01095938]
[1767562143780,0.00472097,91250.0,91246.0,0.05479652]
[1767562144431,0.00472097,91250.0,91247.0,0.01095926]
[1767562145847,0.02192,91255.0,91247.0,0.01095926]
[1767562146025,0.02192,91255.0,91248.0,0.01095914]
[1767562146556,0.02192,91255.0,91247.0,0.01095926]
[1767562146703,0.02192,91255.0,91248.0,0.01095914]
[1767562146905,0.02192,91255.0,91241.0,0.17198277]
[1767562147113,0.02192,91255.0,91241.0,0.17205765]
[1767562147313,0.0328783,91255.0,91246.0,0.01095938]
[1767562147747,0.0328783,91255.0,91246.0,0.00996038]
[1767562147953,0.0328783,91255.0,91245.0,0.0109595]
[1767562148948,0.0328783,91255.0,91246.0,0.01095938]
[1767562149163,0.01095842,91254.0,91245.0,0.0109595]
[1767562149784,0.0328783,91255.0,91245.0,0.0109595]
[1767562150182,0.01095842,91254.0,91243.0,0.04111612]
[1767562150742,0.01095842,91254.0,91245.0,0.0109595]
[1767562151146,0.01095854,91253.0,91244.0,0.01095962]
[1767562151396,0.01095854,91253.0,91243.0,0.03427507]
[1767562151562,0.01095842,91254.0,91245.0,0.0109595]
[1767562151766,0.01095842,91254.0,91243.0,0.05479834]
[1767562152250,0.05641323,91253.0,91233.0,0.01095818]
[1767562152441,0.02192,91255.0,91230.0,0.06027504]
[1767562152442,0.01,91243.0,91232.0,0.06576633]
[1767562152561,0.01095986,91242.0,91232.0,0.01096106]
[1767562152767,0.0109601,91240.0,91231.0,0.01096118]
[1767562152974,0.01095998,91241.0,91231.0,0.01096118]